fUSD/lending_fUSD_20240628
["ID","MTS","AMOUNT","RATE_DAILY","PERIOD"]
[330583883,1719589844433,-785.44497192,0.00017185,2]
[330583900,1719589844579,-869.95370905,0.00017185,2]
[330584023,1719589845931,-1019.44765747,0.00014199,2]
[330584050,1719589846101,-863.175,0.00014199,2]
[330585170,1719590033452,1000.0,0.000225,30]
[330585171,1719590051221,1000.0,0.000225,30]
[330585176,1719590405903,-2095.0,0.00013472,2]
[330585179,1719590674271,5000.0,0.00026,120]
[330585180,1719590772930,5000.0,0.00026,120]
[330585190,1719590943269,-300.0,0.00011097,2]
[330585191,1719590945070,-6220.16021118,0.00011098,2]
[330585192,1719590945091,-1013.16514783,0.00011098,2]
[330585194,1719590994636,702.49402152,0.00011098,2]
[330585196,1719591012971,445.0,0.00011098,2]
[330585197,1719591013031,300.0,0.00011098,2]
[330585205,1719591032215,-1913.12,0.00013736,2]
[330585206,1719591032227,-6526.29529183,0.00013736,2]
[330585207,1719591032237,-255.81176174,0.00013999,2]
[330585208,1719591032249,-647.26467047,0.00014099,2]
[330585209,1719591032259,-492.14,0.00014262,2]
[330585210,1719591032269,-159.15516812,0.00014899,2]
[330585211,1719591032279,-173.76628846,0.00014899,2]
[330585212,1719591032288,-182.1172596,0.00014899,2]
[330585213,1719591032298,-159.48679015,0.00014966,5]
[330585214,1719591032308,-519.86065789,0.00014999,2]
[330585215,1719591032318,-1252.34425535,0.00014999,2]
[330585216,1719591032328,-209.96997135,0.00015335,2]
[330585217,1719591032338,-658.09252055,0.00015399,2]
[330585218,1719591032347,-5000.0,0.00015399,2]
[330585219,1719591032363,-369.21,0.00015535,2]
[330585220,1719591032374,-1115.54994263,0.00015535,2]
[330585221,1719591032383,-254.05078128,0.00015832,2]
[330585222,1719591032393,-753.70840975,0.00015832,2]
[330585223,1719591032403,-310.01,0.00016083,2]
[330585224,1719591032412,-2604.12,0.00016124,2]
[330585225,1719591032422,-250.0,0.00016183,2]
[330585226,1719591032432,-210.63,0.00016277,2]
[330585227,1719591032442,-1000.0,0.0001639,2]
[330585228,1719591032452,-188.81,0.0001639,2]
[330585229,1719591032461,-937.226049,0.00016438,2]
[330585230,1719591032471,-492.14,0.00016526,2]
[330585231,1719591032481,-717.3917686,0.00016699,2]
[330585232,1719591032491,-625.93889009,0.00016699,2]
[330585233,1719591032501,-528.24659891,0.00016699,2]
[330585234,1719591032511,-1494.24038237,0.00016808,2]
[330585235,1719591032521,-242.25955593,0.00016808,2]
[330585236,1719591032531,-3466.67771626,0.00017185,2]
[330585237,1719591032541,-476.02603799,0.00017199,2]
[330585238,1719591032551,-274.47037168,0.000172,2]
[330585239,1719591032563,-448.52962832,0.000172,2]
[330585240,1719591032573,-2769.0,0.000172,2]
[330585241,1719591032583,-287.92176092,0.00017253,2]
[330585242,1719591032592,-196.20443442,0.00017257,2]
[330585243,1719591032602,-155.0,0.00017257,2]
[330585244,1719591032612,-274.1161028,0.00017259,2]
[330585245,1719591032622,-937.226049,0.0001726,2]
[330585246,1719591032633,-162.92302052,0.00017444,2]
[330585247,1719591032643,-309.92840343,0.00017444,2]
[330585248,1719591032652,-190.72289956,0.00017444,2]
[330585249,1719591032662,-297.5322264,0.00017444,2]
[330585250,1719591032671,-150.84,0.00017507,2]
[330585251,1719591032681,-1392.67864661,0.00017533,2]
[330585252,1719591032692,-501.27197359,0.00017703,2]
[330585253,1719591032701,-226.99073299,0.00017829,2]
[330585254,1719591032712,-500.0,0.00017855,2]
[330585255,1719591032722,-500.0,0.00017856,2]
[330585256,1719591032732,-500.0,0.00017856,2]
[330585257,1719591032741,-1770.25555144,0.000179,2]
[330585258,1719591032813,-1003.81614042,0.000179,2]
[330585259,1719591032824,-308.2181419,0.000179,2]
[330585260,1719591032835,-1571.98971768,0.000179,2]
[330585261,1719591032962,-5538.24862353,0.000179,2]
[330585262,1719591032973,-304.70431247,0.000179,2]
[330585263,1719591032983,-155.0,0.00017925,2]
[330585264,1719591032993,-276.2772852,0.00017925,2]
[330585265,1719591033003,-602.96133738,0.00017988,2]
[330585266,1719591033014,-168.1697035,0.00017988,2]
[330585267,1719591033024,-5476.3981386,0.00017988,2]
[330585268,1719591033034,-8012.291794,0.00017988,2]
[330585269,1719591033044,-20041.114478,0.00017988,2]
[330585270,1719591033054,-808.9703355,0.00017988,2]
[330585271,1719591033064,-1844.0950245,0.00017988,2]
[330585272,1719591033074,-194.7705356,0.00017988,2]
[330585273,1719591033084,-1477.7720488,0.00017999,2]
[330585274,1719591033094,-698.91607848,0.00017999,2]
[330585275,1719591033104,-399095.54497764,0.00018,2]
[330585276,1719591033114,-1000.0,0.00018,2]
[330585277,1719591033126,-1000.0,0.00018,2]
[330585278,1719591033136,-226.31854935,0.00018,2]
[330585279,1719591033146,-490.0,0.00018,2]
[330585280,1719591033156,-3000.0,0.00018,2]
[330585281,1719591033166,-791.80589284,0.00018081,2]
[330585282,1719591033176,-937.226049,0.00018082,2]
[330585283,1719591033186,-3091.0,0.00018221,2]
[330585284,1719591033196,-1000.0,0.00018439,2]
[330585285,1719591033206,-188.81,0.00018439,2]
[330585286,1719591033216,-2774.07169184,0.00018454,2]
[330585287,1719591033227,-7110.23834115,0.00018454,2]
[330585288,1719591033237,-2446.0,0.00018532,2]
[330585289,1719591033247,-1273.0,0.00018581,2]
[330585290,1719591033257,-1655.0,0.00018581,2]
[330585291,1719591033267,-153.554,0.00018581,2]
[330585292,1719591033277,-2413.0,0.00018581,2]
[330585293,1719591033287,-1304.0,0.00018581,2]
[330585294,1719591033297,-1985.0,0.00018581,2]
[330585295,1719591033307,-3202.0,0.00018581,2]
[330585296,1719591033317,-547.0,0.00018581,2]
[330585297,1719591033327,-5170.0,0.00018581,2]
[330585298,1719591033337,-4215.08065054,0.00018581,2]
[330585312,1719591038505,-159.15516812,0.00014849,2]
[330585313,1719591038515,-475.2316268,0.00017253,2]
[330585314,1719591038525,-738.8860244,0.00017999,2]
[330585315,1719591038535,-166.05428656,0.00018,2]
[330585316,1719591038544,-166.05428656,0.00018,2]
[330585317,1719591038554,-166.05428656,0.00018,2]
[330585318,1719591038563,-166.05428656,0.00018,2]
[330585319,1719591038573,-166.05428656,0.00018,2]
[330585320,1719591038583,-166.05428656,0.00018,2]
[330585321,1719591038593,-166.05428656,0.00018,2]
[330585322,1719591038603,-166.05428656,0.00018,2]
[330585323,1719591038612,-166.05428656,0.00018,2]
[330585324,1719591038621,-166.05428656,0.00018,2]
[330585325,1719591038632,-166.05428656,0.00018,2]
[330585326,1719591038642,-166.05428656,0.00018,2]
[330585327,1719591038651,-166.05428656,0.00018,2]
[330585328,1719591038664,-166.05428656,0.00018,2]
[330585329,1719591038674,-166.05428656,0.00018,2]
[330585330,1719591038683,-166.05428656,0.00018,2]
[330585331,1719591038693,-166.05428656,0.00018,2]
[330585332,1719591038702,-166.05428656,0.00018,2]
[330585333,1719591038711,-166.05428656,0.00018,2]
[330585334,1719591038721,-166.05428656,0.00018,2]
[330585335,1719591038731,-166.05428656,0.00018,2]
[330585336,1719591038740,-168.95,0.00018525,2]
[330585337,1719591038750,-1586.91934946,0.00018581,2]
[330585338,1719591038761,-291.0,0.00018581,2]
[330585339,1719591038770,-1197.0,0.00018581,2]
[330585340,1719591038779,-1662.115,0.00018581,2]
[330585341,1719591038788,-18571.46499828,0.00018581,2]
[330585342,1719591038838,-19608.53500172,0.00018581,2]
[330585343,1719591038848,-308.21814188,0.00018613,2]
[330585344,1719591038858,-360.0,0.00018634,2]
[330585345,1719591038867,-1181.7468564,0.00018634,2]
[330585346,1719591038881,-648.2531436,0.00018634,2]
[330585347,1719591038891,-86.45551804,0.00018665,2]
[330585348,1719591038964,-166.05428656,0.00018,2]
[330585349,1719591038974,-80.73448196,0.00018665,2]
[330585350,1719591038983,-36.12985847,0.0001879,2]
[330585351,1719591038996,-456.01014153,0.0001879,2]
[330585352,1719591039005,-155.0,0.00018835,2]
[330585353,1719591039015,-150.0,0.00018877,2]
[330585354,1719591039024,-253.27124644,0.00018899,2]
[330585355,1719591039057,-1069.0,0.00018581,2]
[330585356,1719591039067,-238.24566439,0.00018899,2]
[330585357,1719591039077,-208.97452448,0.00018899,2]
[330585358,1719591039087,-1000.0,0.000189,3]
[330585359,1719591039097,-451.11,0.000189,2]
[330585360,1719591039107,-451.11,0.000189,2]
[330585361,1719591039118,-937.226049,0.00018904,2]
[330585362,1719591039129,-3000.0,0.0001898,2]
[330585363,1719591039139,-1054.20873751,0.00018999,2]
[330585364,1719591039148,-850.0,0.00019,2]
[330585365,1719591039158,-2774.07169184,0.00019009,2]
[330585366,1719591039168,-7110.23834115,0.00019009,2]
[330585367,1719591039178,-337.23218504,0.00019069,2]
[330585368,1719591039187,-250.0,0.00019178,2]
[330585369,1719591039197,-172.91,0.00019207,2]
[330585370,1719591039206,-518.04242089,0.00019299,2]
[330585371,1719591039216,-308.21814188,0.00019326,2]
[330585372,1719591039226,-690.00328514,0.0001935,2]
[330585373,1719591039236,-365.78781787,0.0001935,2]
[330585374,1719591039246,-155.05383438,0.00019352,2]
[330585375,1719591039256,-155.0,0.00019352,2]
[330585376,1719591039266,-483.06790317,0.00019352,2]
[330585377,1719591039275,-155.80641109,0.00019352,2]
[330585378,1719591039285,-264.65328618,0.00019354,2]
[330585379,1719591039295,-227.90866278,0.00019399,2]
[330585380,1719591039306,-2005.25738355,0.00019399,2]
[330585381,1719591039316,-296.71594966,0.00019399,2]
[330585382,1719591039325,-305.3305634,0.00019451,2]
[330585383,1719591039335,-881.28956155,0.000195,2]
[330585384,1719591039345,-210.63,0.00019532,2]
[330585385,1719591039355,-1428.33103454,0.00019563,2]
[330585386,1719591039370,-1345.7406573,0.00019563,2]
[330585387,1719591039380,-3479.40715754,0.00019563,2]
[330585393,1719591040106,-166.05428656,0.00018,2]
[330585394,1719591040116,-138.04015213,0.00018,2]
[330585395,1719591041351,-28.01413443,0.00018,2]
[330585396,1719591041365,-166.05428656,0.00018,2]
[330585397,1719591041375,-166.05428656,0.00018,2]
[330585398,1719591041387,-166.05428656,0.00018,2]
[330585399,1719591041397,-166.05428656,0.00018,2]
[330585400,1719591041407,-166.05428656,0.00018,2]
[330585401,1719591041417,-166.05428656,0.00018,2]
[330585402,1719591041426,-166.05428656,0.00018,2]
[330585403,1719591041438,-166.05428656,0.00018,2]
[330585404,1719591041448,-166.05428656,0.00018,2]
[330585405,1719591041458,-166.05428656,0.00018,2]
[330585406,1719591041467,-532.71676313,0.00019299,2]
[330585407,1719591041477,-954.9669623,0.00019563,2]
[330585434,1719591043363,-166.05428656,0.00018,2]
[330585435,1719591043372,-166.05428656,0.00018,2]
[330585436,1719591043383,-166.05428656,0.00018,2]
[330585437,1719591043393,-166.05428656,0.00018,2]
[330585438,1719591043402,-166.05428656,0.00018,2]
[330585439,1719591043411,-166.05428656,0.00018,2]
[330585440,1719591043420,-166.05428656,0.00018,2]
[330585441,1719591043431,-166.05428656,0.00018,2]
[330585442,1719591043441,-369.4430122,0.0001858,2]
[330585443,1719591043451,-2675.86422131,0.00019563,2]
[330585444,1719591043460,-19613.70069678,0.00019565,2]
[330585445,1719591043470,-167.19,0.00019638,2]
[330585446,1719591043479,-888.42211868,0.00019725,2]
[330585447,1719591043488,-937.226049,0.00019726,2]
[330585448,1719591043497,-317.12,0.00019734,2]
[330585449,1719591043507,-156.46,0.00019734,2]
[330585450,1719591043517,-1000.0,0.00019898,2]
[330585451,1719591043527,-1000.0,0.000199,3]
[330585452,1719591043536,-150.0,0.00019957,2]
[330585453,1719591043545,-1284.03911585,0.00019964,2]
[330585454,1719591043555,-155.0,0.00019964,2]
[330585455,1719591043565,-165.4084403,0.00019964,2]
[330585456,1719591043575,-365.11758326,0.00019964,2]
[330585457,1719591043584,-8763.09804403,0.00019964,2]
[330585459,1719591043594,-451.11,0.0001998,2]
[330585460,1719591043604,-258.6924005,0.0001999,2]
[330585461,1719591043614,-451.11,0.0001999,2]
[330585462,1719591043624,-500.0,0.00019999,2]
[330585463,1719591043635,-453.89548846,0.00019999,2]
[330585464,1719591043645,-500.0,0.00019999,2]
[330585465,1719591043654,-222.35074483,0.00019999,2]
[330585466,1719591043663,-500.0,0.00019999,2]
[330585467,1719591043672,-500.0,0.00019999,2]
[330585468,1719591043683,-429.80804002,0.00019999,2]
[330585469,1719591043692,-500.0,0.00019999,2]
[330585470,1719591043702,-500.0,0.00019999,2]
[330585471,1719591043712,-500.0,0.00019999,2]
[330585472,1719591043721,-500.0,0.00019999,2]
[330585473,1719591043731,-500.0,0.00019999,2]
[330585474,1719591043740,-500.0,0.00019999,2]
[330585475,1719591043749,-500.0,0.00019999,2]
[330585476,1719591043759,-309.32497557,0.00019999,2]
[330585477,1719591043768,-500.0,0.00019999,2]
[330585478,1719591043777,-500.0,0.00019999,2]
[330585479,1719591043787,-500.0,0.00019999,2]
[330585480,1719591043796,-500.0,0.00019999,2]
[330585481,1719591043805,-500.0,0.00019999,2]
[330585482,1719591043815,-500.0,0.00019999,2]
[330585483,1719591043826,-500.0,0.00019999,2]
[330585484,1719591043836,-500.0,0.00019999,2]
[330585485,1719591043846,-500.0,0.00019999,2]
[330585486,1719591043856,-500.0,0.00019999,2]
[330585487,1719591043865,-500.0,0.00019999,2]
[330585488,1719591043874,-500.0,0.00019999,2]
[330585489,1719591043887,-277.97193674,0.00019999,2]
[330585490,1719591043896,-669.96579635,0.0002,2]
[330585491,1719591043905,-257.0,0.0002,2]
[330585492,1719591043918,-850.0,0.0002,2]
[330585493,1719591043928,-5919.05704363,0.0002,2]
[330585494,1719591043940,-355.82147896,0.0002,2]
[330585495,1719591043950,-544.17852104,0.0002,2]
[330585496,1719591043962,-323.03378125,0.0002,2]
[330585497,1719591043972,-300.99743264,0.0002,2]
[330585506,1719591115532,-1494.24038237,0.00013128,2]
[330585507,1719591117710,-300.75961763,0.00013128,2]
[330585509,1719591129438,-750.0,0.00011199,2]
[330585510,1719591151901,-24506.11808844,0.00011199,2]
[330585514,1719591193016,10542.48889215,0.00011199,2]
[330585516,1719591218365,1236.08947185,0.00011199,2]
[330585517,1719591222424,5842.06536268,0.00011199,2]
[330585518,1719591225450,658.09252055,0.00011199,2]
[330585519,1719591230094,1388.89298059,0.00011199,2]
[330585520,1719591240372,717.3917686,0.00011199,2]
[330585522,1719591274086,13650.03057509,0.00011199,2]
[330585523,1719591274110,5963.67012169,0.00011199,2]
[330585526,1719591318330,253.7578621,0.00011199,2]
[330585528,1719591332108,226.99073299,0.00011199,2]
[330585529,1719591334893,7546.32073661,0.00011199,2]
[330585530,1719591337274,491.67821616,0.00011199,2]
[330585531,1719591348212,400.945076,0.00011199,2]
[330585532,1719591352508,173.76628846,0.00011199,2]
[330585533,1719591357374,159.48679015,0.00011199,5]
[330585535,1719591364088,235.39542175,0.00011199,2]
[330585536,1719591364660,218.22798197,0.00011199,2]
[330585537,1719591364958,297.12075316,0.00011199,2]
[330585538,1719591369895,4713.24960871,0.00011199,2]
[330585539,1719591375820,155.0,0.00011199,2]
[330585540,1719591405148,155.0,0.00011199,2]
[330585541,1719591426845,4868.38780224,0.00011199,2]
[330585542,1719591446961,6223.59863334,0.00011199,2]
[330585543,1719591453973,1007.49257294,0.00011199,2]
[330585548,1719591508820,2086.61542995,0.00011199,2]
[330585551,1719591561479,1263.2464365,0.00011199,2]
[330585552,1719591562822,1133.60989333,0.00011199,2]
[330585553,1719591572987,1285.33647397,0.00011199,2]
[330585554,1719591584181,716.15873554,0.00011199,2]
[330585555,1719591608680,258.45748532,0.00011199,2]
[330585557,1719591663559,491.40431693,0.00011199,2]
[330585558,1719591666665,6223.59863334,0.00011199,2]
[330585559,1719591669280,1902.48215046,0.00011199,2]
[330585561,1719591681083,430.77259293,0.00011199,2]
[330585562,1719591686689,527.94009131,0.00011199,2]
[330585563,1719591694086,155.97820346,0.00011199,2]
[330585564,1719591694261,2536.43004497,0.00011199,2]
[330585565,1719591699305,155.45226995,0.00011199,2]
[330585566,1719591701224,308.24720114,0.00011199,2]
[330585568,1719591718569,155.5464279,0.00011199,2]
[330585569,1719591720520,174.16616762,0.00011199,2]
[330585570,1719591722255,209.91230076,0.00011199,2]
[330585572,1719591760113,155.63416098,0.00011199,2]
[330585573,1719591761106,173.76628846,0.00011199,2]
[330585574,1719591770470,658.09252055,0.00011199,2]
[330585575,1719591805612,2115.2032197,0.00011199,2]
[330585578,1719591873673,3760.03119375,0.00011199,2]
[330585580,1719591898366,159.48679015,0.00011199,5]
[330585581,1719591900229,155.0,0.00011199,2]
[330585582,1719591927137,888.42211868,0.00011199,2]
[330585583,1719591927493,226.99073299,0.00011199,2]
[330585584,1719591957396,226.99073299,0.00011199,2]
[330585585,1719591977521,2536.43004497,0.00011199,2]
[330585588,1719592015203,233.57258064,0.00011199,2]
[330585589,1719592026983,551.52379103,0.00011199,2]
[330585593,1719592178058,13174.9232667,0.00011199,2]
[330585595,1719592211557,2536.43004497,0.00011199,2]
[330585596,1719592221189,377.50566758,0.00011199,2]
[330585599,1719592232392,-412.61839352,0.00012273,2]
[330585600,1719592232402,-224.44585076,0.00012314,2]
[330585601,1719592232411,-155.0,0.00012314,2]
[330585602,1719592232420,-64.19742355,0.00013472,2]
[330585603,1719592232509,-162.79330944,0.00013472,2]
[330585604,1719592232519,-350.34157278,0.00013516,2]
[330585605,1719592232528,-159.48679015,0.00013574,5]
[330585606,1719592232538,-264.69176652,0.00013574,2]
[330585607,1719592232549,-759.08000022,0.00013574,2]
[330585608,1719592232561,-214.33000088,0.00013574,2]
[330585609,1719592232571,-3715.69582464,0.00014,2]
[330585610,1719592232582,-188.36171775,0.000149,2]
[330585611,1719592232591,-492.072385,0.00015616,2]
[330585612,1719592232600,-466.18,0.00016283,2]
[330585613,1719592232609,-492.072385,0.00016438,2]
[330585614,1719592232619,-240.60131678,0.00016699,2]
[330585615,1719592232628,-492.072385,0.0001726,2]
[330585616,1719592232638,-9986.34058154,0.00017875,2]
[330585617,1719592232649,-1841.57738798,0.00017875,2]
[330585618,1719592232660,-25593.95203048,0.00017875,2]
[330585619,1719592232669,-155.0,0.00017896,2]
[330585620,1719592232679,-188.81,0.00017912,2]
[330585621,1719592232688,-400.0,0.00017913,2]
[330585622,1719592232697,-492.072385,0.00018082,2]
[330585623,1719592232707,-250.0,0.00018102,2]
[330585624,1719592232719,-17578.0,0.000182,2]
[330585625,1719592232729,-600.0,0.00018232,2]
[330585626,1719592232738,-466.18,0.00018547,2]
[330585627,1719592232747,-613.20726568,0.00018759,2]
[330585628,1719592232759,-192.61226279,0.00018864,2]
[330585629,1719592232771,-76.85847688,0.00018864,2]
[330585630,1719592232780,-492.072385,0.00018904,2]
[330585631,1719592232791,-221.22822774,0.00018919,2]
[330585632,1719592232802,-13.44091042,0.00019,3]
[330585633,1719592232918,-3122.66084388,0.00019,3]
[330585634,1719592232970,-359.16532702,0.00019,3]
[330585635,1719592232986,-1119.44553033,0.00019,3]
[330585641,1719592238491,-703.20536157,0.00012302,2]
[330585642,1719592238505,-185.21675711,0.00012302,2]
[330585643,1719592238515,-7139.28738835,0.00019,3]
[330585644,1719592238526,-250.0,0.00019178,2]
[330585645,1719592238536,-305.3305634,0.00019389,2]
[330585646,1719592238546,-296.01251038,0.00019451,2]
[330585647,1719592238557,-882.85888982,0.000195,2]
[330585648,1719592238568,-492.072385,0.00019726,2]
[330585649,1719592238579,-885.18796212,0.000198,2]
[330585650,1719592238591,-763.01434954,0.000198,2]
[330585651,1719592238603,-299.77437466,0.000198,2]
[330585652,1719592238615,-52.02331368,0.000198,2]
[330585653,1719592238625,-1438.87527762,0.000198,5]
[330585654,1719592238670,-1870.6952751,0.000198,5]
[330585655,1719592238683,-1082.17917477,0.000198,5]
[330585656,1719592238695,-533.89542215,0.000198,5]
[330585657,1719592238708,-335.125,0.000198,5]
[330585658,1719592238725,-346.7403356,0.000198,5]
[330585659,1719592238738,-6146.48951476,0.000198,5]
[330585660,1719592238749,-384.09870792,0.00019808,2]
[330585661,1719592238760,-1220.95347916,0.0001981,2]
[330585662,1719592238770,-160.93765356,0.00019899,2]
[330585663,1719592238783,-255.46479199,0.000199,2]
[330585664,1719592238852,-472.28947022,0.000199,2]
[330585665,1719592238864,-622.21983407,0.000199,2]
[330585666,1719592238993,-965.47893929,0.000199,2]
[330585667,1719592239007,-1950.68996912,0.000199,2]
[330585668,1719592239018,-387.6722785,0.00019915,2]
[330585669,1719592239029,-172.91,0.00019959,2]
[330585670,1719592239040,-368.71565506,0.00019964,2]
[330585671,1719592239052,-286.06113291,0.0001999,2]
[330585672,1719592239062,-260.78269667,0.0001999,3]
[330585673,1719592239076,-8.19730333,0.0001999,3]
[330585674,1719592239092,-184.7215061,0.00019999,2]
[330585675,1719592239103,-63.08119047,0.0002,2]
[330585676,1719592239116,-673.65235689,0.0002,2]
[330585677,1719592239126,-630.05082092,0.0002,5]
[330585678,1719592239136,-581.17261921,0.0002,2]
[330585679,1719592239147,-447.92404366,0.0002,2]
[330585680,1719592239157,-440.19109654,0.0002,2]
[330585681,1719592239170,-110.15729625,0.0002,2]
[330585682,1719592239180,-169.6676061,0.0002,2]
[330585683,1719592239191,-557.05272239,0.0002,2]
[330585684,1719592239203,-681.90766242,0.0002,2]
[330585685,1719592239216,-2388.94041669,0.0002,2]
[330585686,1719592239303,-461.61248665,0.0002,2]
[330585687,1719592239317,-255.96292369,0.0002,2]
[330585688,1719592239977,-8270.14591988,0.0002,2]
[330585689,1719592239992,-3912.70000001,0.0002,2]
[330585690,1719592240004,-871.38553932,0.0002,2]
[330585691,1719592240033,-41438.07785907,0.0002,2]
[330585692,1719592240046,-18534.69865264,0.0002,2]
[330585693,1719592240057,-2312.18782311,0.0002,2]
[330585694,1719592240069,-1965.26599421,0.0002,2]
[330585695,1719592240081,-6274.87852259,0.0002,2]
[330585696,1719592240090,-490.0,0.0002,2]
[330585697,1719592240100,-257.0,0.0002,2]
[330585698,1719592240109,-327.02420312,0.0002,2]
[330585699,1719592240119,-150.0,0.0002,2]
[330585700,1719592240129,-775.40297049,0.0002,2]
[330585701,1719592240139,-775.40297049,0.0002,2]
[330585702,1719592240149,-775.40297049,0.0002,2]
[330585703,1719592240159,-775.40297049,0.0002,2]
[330585704,1719592240169,-476.37673216,0.0002,2]
[330585705,1719592240182,-299.02623833,0.0002,2]
[330585706,1719592240191,-339.86766153,0.0002,2]
[330585722,1719592241724,-435.53530896,0.0002,2]
[330585723,1719592241737,-605.26649098,0.0002,2]
[330585724,1719592241749,-170.13647951,0.0002,2]
[330585725,1719592241758,-775.40297049,0.0002,2]
[330585726,1719592241769,-775.40297049,0.0002,2]
[330585727,1719592241778,-775.40297049,0.0002,2]
[330585728,1719592241787,-775.40297049,0.0002,2]
[330585729,1719592241796,-775.40297049,0.0002,2]
[330585730,1719592241806,-775.40297049,0.0002,2]
[330585731,1719592241816,-775.40297049,0.0002,2]
[330585732,1719592241826,-775.40297049,0.0002,2]
[330585733,1719592241836,-775.40297049,0.0002,2]
[330585734,1719592241845,-775.40297049,0.0002,2]
[330585735,1719592241854,-775.40297049,0.0002,2]
[330585736,1719592241864,-775.40297049,0.0002,2]
[330585737,1719592241873,-775.40297049,0.0002,2]
[330585738,1719592241882,-775.40297049,0.0002,2]
[330585739,1719592241891,-775.40297049,0.0002,2]
[330585740,1719592241900,-775.40297049,0.0002,2]
[330585741,1719592241909,-775.40297049,0.0002,2]
[330585742,1719592241918,-775.40297049,0.0002,2]
[330585743,1719592241927,-775.40297049,0.0002,2]
[330585744,1719592241937,-775.40297049,0.0002,2]
[330585745,1719592241946,-30.48972633,0.0002,2]
[330585746,1719592241958,-656.14,0.0002,2]
[330585747,1719592242013,-88.77324416,0.0002,2]
[330585748,1719592242023,-345.70675584,0.0002,2]
[330585749,1719592242034,-429.69621465,0.0002,2]
[330585750,1719592242044,-775.40297049,0.0002,2]
[330585751,1719592242053,-775.40297049,0.0002,2]
[330585752,1719592242063,-386.34010789,0.0002,2]
[330585753,1719592242075,-389.0628626,0.0002,2]
[330585754,1719592242086,-307.31392652,0.0002,2]
[330585755,1719592242097,-443.23700073,0.0002,2]
[330585756,1719592242108,-24.85204324,0.0002,2]
[330585757,1719592242117,-436.88795676,0.0002,2]
[330585758,1719592242128,-314.33454932,0.0002,2]
[330585759,1719592242140,-24.18046441,0.0002,2]
[330585760,1719592242149,-775.40297049,0.0002,2]
[330585761,1719592242158,-775.40297049,0.0002,2]
[330585762,1719592242167,-775.40297049,0.0002,2]
[330585763,1719592242176,-775.40297049,0.0002,2]
[330585764,1719592242185,-775.40297049,0.0002,2]
[330585765,1719592242194,-775.40297049,0.0002,2]
[330585766,1719592242203,-775.40297049,0.0002,2]
[330585767,1719592242212,-775.40297049,0.0002,2]
[330585768,1719592242221,-775.40297049,0.0002,2]
[330585769,1719592242230,-775.40297049,0.0002,2]
[330585770,1719592242239,-775.40297049,0.0002,2]
[330585771,1719592242572,-775.40297049,0.0002,2]
[330585772,1719592242595,-775.40297049,0.0002,2]
[330585773,1719592242604,-775.40297049,0.0002,2]
[330585774,1719592242614,-775.40297049,0.0002,2]
[330585775,1719592242624,-155.0,0.0002,2]
[330585776,1719592242636,-150.0,0.0002,2]
[330585777,1719592242646,-2921.56094855,0.0002,3]
[330585778,1719592242655,-775.40297049,0.00020001,2]
[330585779,1719592242665,-775.40297049,0.00020001,2]
[330585780,1719592242675,-775.40297049,0.00020001,2]
[330585781,1719592242684,-775.40297049,0.00020001,2]
[330585782,1719592242693,-775.40297049,0.00020001,2]
[330585783,1719592242703,-775.40297049,0.00020001,2]
[330585784,1719592242712,-775.40297049,0.00020001,2]
[330585785,1719592242727,-775.40297049,0.00020001,2]
[330585786,1719592242737,-775.40297049,0.00020001,2]
[330585787,1719592242747,-775.40297049,0.00020001,2]
[330585788,1719592242756,-775.40297049,0.00020001,2]
[330585789,1719592242768,-775.40297049,0.00020001,2]
[330585790,1719592242778,-775.40297049,0.00020001,2]
[330585791,1719592242787,-775.40297049,0.00020001,2]
[330585792,1719592242800,-775.40297049,0.00020001,2]
[330585793,1719592242811,-775.40297049,0.00020001,2]